bitfinex/quotes_BTCUSD_20260310
["timestamp","ask_amount","ask_price","bid_price","bid_amount"]
[1773100802260,0.00465696,68461.0,68442.0,0.00472362]
[1773100802464,0.00465696,68460.0,68443.0,0.00781712]
[1773100802988,0.00022001,68471.0,68443.0,0.00781712]
[1773100802989,0.00465696,68458.0,68443.0,0.00781712]
[1773100803326,0.00465696,68456.0,68443.0,0.00781712]
[1773100803530,0.00465696,68456.0,68444.0,0.00781701]
[1773100803675,0.00461122,68456.0,68438.0,0.03310914]
[1773100804219,0.00461122,68456.0,68438.0,0.00472362]
[1773100804768,0.02756423,68455.0,68432.0,0.12164412]
[1773100804967,0.00465696,68452.0,68432.0,0.12164412]
[1773100805189,0.02756423,68449.0,68432.0,0.12164412]
[1773100805403,0.00465696,68446.0,68425.0,0.07330178]
[1773100805610,0.00465696,68442.0,68426.0,0.00148]
[1773100805861,0.02756423,68439.0,68426.0,0.00148]
[1773100806058,0.00465696,68438.0,68426.0,0.00148]
[1773100806251,0.02776643,68460.0,68429.0,0.02671885]
[1773100806496,0.00465696,68457.0,68432.0,0.00472362]
[1773100806687,0.00465696,68456.0,68435.0,0.00472362]
[1773100806840,0.00465696,68455.0,68436.0,0.00472362]
[1773100807493,0.00465696,68457.0,68436.0,0.00472362]
[1773100807682,0.00465696,68457.0,68438.0,0.00472362]
[1773100807940,0.02756423,68457.0,68438.0,0.00472362]
[1773100808060,0.00465696,68454.0,68439.0,0.00148]
[1773100808266,0.00465696,68452.0,68440.0,0.07305669]
[1773100808466,0.00465696,68450.0,68441.0,0.00148]
[1773100808663,0.00465696,68448.0,68441.0,0.00148]
[1773100809193,0.02756423,68446.0,68442.0,0.00148]
[1773100809396,0.0049884,68445.0,68443.0,0.00148]
[1773100809610,0.0049884,68445.0,68438.0,0.04485377]
[1773100809810,0.0049884,68445.0,68435.0,0.00148]
[1773100810157,0.0049884,68444.0,68435.0,0.00148]
[1773100810508,0.0049884,68442.0,68429.0,0.07306843]
[1773100810711,0.0049884,68442.0,68430.0,0.00148]
[1773100810911,0.0049884,68442.0,68431.0,0.00148]
[1773100811114,0.0049884,68440.0,68431.0,0.00148]
[1773100811318,0.07304928,68447.0,68432.0,0.00482986]
[1773100811506,0.07803768,68447.0,68433.0,0.03154871]
[1773100811849,0.0049884,68446.0,68433.0,0.02671885]
[1773100812200,0.0049884,68457.0,68435.0,0.02671885]
[1773100812544,0.0049884,68455.0,68437.0,0.02671885]
[1773100812753,0.0049884,68453.0,68439.0,0.02671885]
[1773100812898,0.003,68455.0,68439.0,0.00482986]
[1773100813105,0.00022001,68455.0,68442.0,0.03154871]
[1773100813351,0.00022001,68455.0,68444.0,0.02671885]
[1773100813948,0.00022001,68455.0,68433.0,0.07306416]
[1773100814158,0.0049884,68451.0,68434.0,0.00148]
[1773100814331,0.0049884,68451.0,68435.0,0.02671885]
[1773100814527,0.00022001,68455.0,68436.0,0.00482986]
[1773100814878,0.00541173,68462.0,68436.0,0.00482986]
[1773100814879,0.00022001,68462.0,68442.0,0.02671885]
[1773100815075,0.07302064,68474.0,68446.0,0.00482986]
[1773100815290,0.03,68470.0,68449.0,0.02671885]
[1773100815477,0.03,68470.0,68438.0,0.07305882]
[1773100815478,0.03,68470.0,68452.0,0.00482986]
[1773100815678,0.03,68470.0,68455.0,0.02671885]
[1773100815927,0.03,68470.0,68457.0,0.02671885]
[1773100816095,0.03,68470.0,68459.0,0.02671885]
[1773100816294,0.03,68469.0,68462.0,0.00482986]
[1773100816493,0.03,68469.0,68463.0,0.00148]
[1773100816880,0.07302186,68473.0,68464.0,0.07303108]
[1773100817083,0.00023,68475.0,68465.0,0.02671885]
[1773100817287,0.10324953,68475.0,68464.0,0.07786094]
[1773100817483,0.03023,68475.0,68464.0,0.07303108]
[1773100817684,0.10325028,68475.0,68465.0,0.00148]
[1773100817938,0.03,68472.0,68456.0,0.07303921]
[1773100818215,0.0049884,68469.0,68457.0,0.00148]
[1773100818577,0.03,68468.0,68458.0,0.00148]
[1773100818797,0.0349884,68468.0,68458.0,0.00148]
[1773100819010,0.03,68466.0,68459.0,0.07303641]
[1773100819737,0.03,68466.0,68458.0,0.00148]
[1773100820029,0.0349884,68466.0,68458.0,0.07451699]
[1773100821331,0.03,68465.0,68458.0,0.07451699]
[1773100823357,0.0049884,68462.0,68446.0,0.10459899]
[1773100823557,0.0049884,68462.0,68447.0,0.02819885]
[1773100823761,0.0049884,68462.0,68447.0,0.03302871]
[1773100824296,0.03,68463.0,68449.0,0.02671885]
[1773100824465,0.03,68462.0,68451.0,0.02671885]
[1773100824665,0.0049884,68467.0,68451.0,0.02671885]
[1773100824666,0.07302804,68467.0,68451.0,0.02671885]
[1773100824885,0.00519172,68466.0,68452.0,0.00148]
[1773100825086,0.0049884,68465.0,68447.0,0.02671885]
[1773100825291,0.0049884,68461.0,68449.0,0.07304708]
[1773100825497,0.0049884,68461.0,68450.0,0.02671885]
[1773100825902,0.0049884,68461.0,68445.0,0.0730505]
[1773100826102,0.0049884,68461.0,68446.0,0.00148]
[1773100827325,0.00519172,68464.0,68446.0,0.00148]
[1773100827526,0.07303094,68465.0,68450.0,0.02671885]
[1773100827668,0.07450728,68468.0,68453.0,0.00482986]
[1773100827873,0.07450728,68468.0,68456.0,0.02671885]
[1773100828094,0.0049884,68467.0,68457.0,0.00148]
[1773100828295,0.0049884,68467.0,68455.0,0.00148]
[1773100828527,0.03,68467.0,68455.0,0.02819885]
[1773100828730,0.0049884,68466.0,68455.0,0.02819885]
[1773100829122,0.00022001,68463.0,68455.0,0.02819885]
[1773100829522,0.00022001,68463.0,68456.0,0.07303961]
[1773100829951,0.03022001,68463.0,68456.0,0.07303961]
[1773100830153,0.10325287,68463.0,68456.0,0.07303961]
[1773100830374,0.03022001,68463.0,68456.0,0.07303961]
[1773100831265,0.03,68461.0,68454.0,0.04013451]
[1773100832032,0.10303474,68461.0,68452.0,0.07304298]
[1773100832234,0.00022001,68470.0,68454.0,0.03171885]
[1773100832437,0.07302691,68468.0,68455.0,0.005]
[1773100833041,0.07302691,68468.0,68456.0,0.02671885]
[1773100833445,0.03,68467.0,68456.0,0.02671885]
[1773100834151,0.03,68467.0,68459.0,0.005]
[1773100834375,0.03,68467.0,68459.0,0.02812339]
[1773100834703,0.10302833,68467.0,68458.0,0.07803748]
[1773100836182,0.10402833,68467.0,68458.0,0.07803748]
[1773100836792,0.10402833,68467.0,68458.0,0.07823748]
[1773100838184,0.10302833,68467.0,68458.0,0.07823748]
[1773100838386,0.10302833,68467.0,68457.0,0.07303748]
[1773100838593,0.0049884,68466.0,68455.0,0.00148]
[1773100838898,0.0049884,68466.0,68456.0,0.07303854]
[1773100839522,0.0049884,68466.0,68456.0,0.07451854]
[1773100839902,0.0049884,68466.0,68454.0,0.07304278]
[1773100840107,0.10302833,68467.0,68446.0,0.00148]
[1773100840108,0.03,68461.0,68446.0,0.00148]
[1773100840354,0.03,68459.0,68447.0,0.00148]
[1773100840480,0.03,68457.0,68449.0,0.005]
[1773100841288,0.07303437,68461.0,68449.0,0.005]
[1773100841595,0.03,68467.0,68452.0,0.005]
[1773100841798,0.00148,68465.0,68452.0,0.005]
[1773100842318,0.00148,68465.0,68453.0,0.00148]
[1773100842643,0.03,68464.0,68454.0,0.07304175]
[1773100842794,0.03,68464.0,68453.0,0.00148]
[1773100844163,0.03,68464.0,68453.0,0.00168]
[1773100844461,0.03022001,68464.0,68453.0,0.00168]
[1773100844639,0.03,68462.0,68453.0,0.07472234]
[1773100845674,0.03,68462.0,68453.0,0.00168]
[1773100846086,0.031,68462.0,68453.0,0.0002]
[1773100846645,0.07303214,68466.0,68453.0,0.0002]
[1773100846646,0.03,68475.0,68457.0,0.0304417]
[1773100846858,0.03,68475.0,68461.0,0.0304417]
[1773100847057,0.03,68475.0,68463.0,0.0354417]
[1773100847264,0.03,68475.0,68463.0,0.0304417]
[1773100847469,0.03,68475.0,68464.0,0.00148]
[1773100848465,0.00022001,68478.0,68467.0,0.005]
[1773100848669,0.00022001,68483.0,68467.0,0.07302788]
[1773100848872,0.00022001,68483.0,68471.0,0.005]
[1773100849071,0.01315571,68481.0,68467.0,0.07302788]
[1773100849322,0.01315571,68481.0,68466.0,0.07450894]
[1773100849531,0.03,68480.0,68466.0,0.07450894]
[1773100849759,0.03,68478.0,68463.0,0.00148]
[1773100849893,0.03,68476.0,68459.0,0.07303641]
[1773100850096,0.03,68476.0,68460.0,0.00148]
[1773100850538,0.03,68476.0,68459.0,0.10495811]
[1773100850947,0.03,68474.0,68459.0,0.10347811]
[1773100851157,0.00148,68473.0,68460.0,0.0319217]
[1773100851630,0.03,68474.0,68463.0,0.00843409]
[1773100851845,0.00022001,68482.0,68466.0,0.0304417]
[1773100852046,0.03,68481.0,68469.0,0.00843409]
[1773100852246,0.03148,68481.0,68471.0,0.00843409]
[1773100852448,0.03148,68481.0,68472.0,0.0304417]
[1773100852649,0.03,68481.0,68472.0,0.0304417]
[1773100852833,0.03,68481.0,68473.0,0.0304417]
[1773100853034,0.10323195,68482.0,68474.0,0.07302041]
[1773100853232,0.03022001,68482.0,68474.0,0.07302041]
[1773100853869,0.00022001,68476.0,68474.0,0.07302041]
[1773100854077,0.00022001,68476.0,68474.0,0.10346211]
[1773100855818,0.00022001,68476.0,68474.0,0.07302041]
[1773100855982,0.00022001,68476.0,68475.0,0.0304417]
[1773100856386,0.00022001,68476.0,68474.0,0.10346211]
[1773100857079,0.00022001,68476.0,68473.0,0.07302123]
[1773100857281,0.00022001,68476.0,68473.0,0.10346293]
[1773100857502,0.00022001,68476.0,68473.0,0.07302123]
[1773100857838,0.00022001,68482.0,68476.0,0.00843409]
[1773100857973,0.00022001,68482.0,68476.0,0.03887579]
[1773100858178,0.03,68481.0,68473.0,0.07302123]
[1773100858391,0.03,68481.0,68464.0,0.07303108]
[1773100858593,0.03,68479.0,68464.0,0.07303108]
[1773100858816,0.00148,68478.0,68464.0,0.07303108]
[1773100859170,0.03,68476.0,68464.0,0.07303108]
[1773100860805,0.03,68474.0,68459.0,0.00148]
[1773100861010,0.04269962,68472.0,68456.0,0.07303902]
[1773100861206,0.00148,68471.0,68456.0,0.07303902]
[1773100861411,0.03,68469.0,68460.0,0.0002]
[1773100861610,0.00084047,68468.0,68460.0,0.0002]
[1773100861977,0.03,68469.0,68460.0,0.0002]
[1773100862139,0.03,68469.0,68462.0,0.0304417]
[1773100862347,0.03,68474.0,68465.0,0.00483995]
[1773100862549,0.03,68474.0,68465.0,0.03528165]
[1773100863354,0.03,68473.0,68466.0,0.07302894]
[1773100864463,0.03,68472.0,68466.0,0.07302894]
[1773100864992,0.03,68472.0,68464.0,0.07302894]
[1773100865544,0.03,68471.0,68464.0,0.07302894]
[1773100866569,0.03,68470.0,68464.0,0.07302894]
[1773100866794,0.03,68470.0,68463.0,0.07303108]
[1773100867537,0.00084047,68470.0,68453.0,0.0002]
[1773100867900,0.00232047,68469.0,68454.0,0.0732417]
[1773100868038,0.00232047,68469.0,68455.0,0.03134153]
[1773100868438,0.00148,68468.0,68455.0,0.03618148]
[1773100868880,0.00084047,68469.0,68460.0,0.0002]
[1773100869082,0.00148,68467.0,68460.0,0.0002]
[1773100869283,0.00148,68468.0,68460.0,0.0002]
[1773100871718,0.03,68469.0,68460.0,0.0002]
[1773100871924,0.00148,68468.0,68460.0,0.0002]
[1773100872161,0.03,68466.0,68455.0,0.07303975]
[1773100872351,0.03,68466.0,68453.0,0.03154153]
[1773100872352,0.00084047,68465.0,68454.0,0.0002]
[1773100872713,0.00084047,68465.0,68454.0,0.07324141]
[1773100873799,0.00084047,68465.0,68454.0,0.0002]
[1773100874144,0.03,68463.0,68454.0,0.0002]
[1773100875072,0.03,68463.0,68454.0,0.03158153]
[1773100876025,0.03,68464.0,68454.0,0.03641907]
[1773100876187,0.03,68462.0,68455.0,0.10442221]
[1773100876523,0.03,68462.0,68456.0,0.03138153]
[1773100877735,0.03,68461.0,68456.0,0.03138153]
[1773100878112,0.03,68461.0,68455.0,0.07304068]
[1773100878550,0.03,68461.0,68456.0,0.03138153]
[1773100878760,0.03,68460.0,68456.0,0.03721907]
[1773100879833,0.03,68459.0,68456.0,0.03621907]
[1773100880263,0.03,68459.0,68457.0,0.03138153]
[1773100880953,0.03,68458.0,68457.0,0.03138153]
[1773100881149,0.03,68458.0,68454.0,0.10462297]
[1773100881355,0.03,68458.0,68454.0,0.07324144]
[1773100881970,0.03,68461.0,68454.0,0.07324144]
[1773100882357,0.03,68461.0,68454.0,0.10462297]
[1773100882557,0.03,68461.0,68455.0,0.03138153]
[1773100882786,0.03,68461.0,68456.0,0.00483754]
[1773100882988,0.07302439,68471.0,68458.0,0.03138153]
[1773100883234,0.07472271,68472.0,68461.0,0.00483754]
[1773100883408,0.07472271,68472.0,68463.0,0.00483754]
[1773100883609,0.07472271,68472.0,68464.0,0.03621907]
[1773100883757,0.00022001,68472.0,68464.0,0.03606963]
[1773100883958,0.07324316,68472.0,68464.0,0.03606963]
[1773100884158,0.03,68471.0,68464.0,0.03606963]
[1773100884359,0.10302429,68471.0,68464.0,0.10910055]
[1773100885758,0.10302429,68471.0,68464.0,0.11010055]
[1773100886963,0.10302429,68471.0,68465.0,0.03135164]
[1773100887164,0.10302429,68471.0,68465.0,0.03618918]
[1773100887503,0.10302429,68471.0,68464.0,0.001]
[1773100887838,0.10302429,68471.0,68461.0,0.0745123]
[1773100888248,0.10302429,68471.0,68465.0,0.001]
[1773100888599,0.10302429,68471.0,68461.0,0.0730323]
[1773100888796,0.00084047,68470.0,68456.0,0.03135164]
[1773100889020,0.03,68468.0,68457.0,0.07471834]
[1773100889247,0.03232047,68468.0,68457.0,0.0732384]
[1773100890526,0.03232047,68468.0,68457.0,0.0012]
[1773100890866,0.03232047,68468.0,68457.0,0.0002]
[1773100891062,0.03,68466.0,68457.0,0.0002]
[1773100891265,0.00084047,68465.0,68457.0,0.0002]
[1773100891768,0.00084047,68465.0,68453.0,0.0002]
[1773100893295,0.0027026,68462.0,68453.0,1e-08]
[1773100893593,0.0027026,68460.0,68453.0,1e-08]
[1773100895179,0.0027026,68457.0,68453.0,1e-08]
[1773100895884,0.03,68458.0,68453.0,1e-08]
[1773100897479,0.03,68456.0,68453.0,1e-08]
[1773100899882,0.03,68452.0,68451.0,0.03135164]
[1773100900927,20.07304318,68453.0,68451.0,0.03135164]
[1773100901140,20.07304318,68453.0,68451.0,0.001]
[1773100901900,20.07304318,68453.0,68451.0,4.501e-05]
[1773100902343,20.07304318,68453.0,68450.0,0.00043]
[1773100902490,20.07304318,68453.0,68451.0,0.001]
[1773100903146,20.07304318,68453.0,68450.0,0.00043]
[1773100904148,20.07304318,68453.0,68451.0,0.001]
[1773100905198,20.07309876,68453.0,68451.0,0.001]
[1773100905397,20.07309876,68453.0,68450.0,0.00043]
[1773100906706,20.07309876,68453.0,68447.0,0.0002]
[1773100907717,20.07309876,68453.0,68449.0,0.0047115]
[1773100907895,20.07309876,68453.0,68450.0,0.03016872]
[1773100908102,20.07309876,68453.0,68450.0,0.03488022]
[1773100908323,20.07309876,68453.0,68447.0,0.0002]
[1773100909419,20.07309876,68453.0,68447.0,0.0012]
[1773100913071,20.07309919,68453.0,68447.0,0.02934261]
[1773100913377,20.07309919,68453.0,68447.0,0.03397235]
[1773100913823,19.52835089,68453.0,68447.0,0.0012]
[1773100914025,16.68311399,68453.0,68450.0,0.00462974]
[1773100914183,16.59469313,68453.0,68452.0,0.03277235]
[1773100914384,16.56521951,68453.0,68452.0,0.03277235]
[1773100915428,16.56521951,68453.0,68452.0,0.03377235]
[1773100915778,16.56521951,68453.0,68452.0,0.03297235]
[1773100915996,16.56521951,68453.0,68452.0,0.10601623]
[1773100916186,16.56521951,68453.0,68452.0,0.10701623]
[1773100917468,16.234712,68453.0,68452.0,0.10601623]
[1773100917814,16.234712,68453.0,68452.0,0.10701623]
[1773100918217,16.234712,68453.0,68452.0,0.10601623]
[1773100918632,16.234712,68453.0,68452.0,0.10701623]
[1773100920719,16.234712,68453.0,68452.0,0.00148]
[1773100920936,0.6,68452.0,68446.0,1e-08]
[1773100921147,0.6,68452.0,68446.0,0.00148001]
[1773100921465,0.07304495,68451.0,68446.0,0.00148001]
[1773100921669,0.03468906,68450.0,68446.0,0.00148001]
[1773100921891,0.03,68450.0,68446.0,0.00148001]
[1773100922497,0.03,68448.0,68446.0,0.00148001]
[1773100922709,0.03,68446.0,68433.0,0.0002]
[1773100922914,0.00468906,68442.0,68433.0,0.0002]
[1773100923450,0.00468906,68440.0,68433.0,0.0002]
[1773100923639,0.03,68438.0,68433.0,0.0002]
[1773100923958,0.00468906,68437.0,68433.0,0.0002]
[1773100924361,0.03,68438.0,68433.0,0.0002]
[1773100924577,0.03,68436.0,68433.0,0.0002]
[1773100927953,0.03,68436.0,68433.0,0.0012]
[1773100928411,0.10306096,68436.0,68433.0,0.0002]
[1773100928610,0.03,68436.0,68433.0,0.0002]
[1773100928830,0.03,68436.0,68433.0,0.0012]
[1773100929758,0.63,68436.0,68433.0,0.0012]
[1773100930163,0.70306108,68436.0,68433.0,0.0012]
[1773100931514,0.00459421,68435.0,68425.0,0.00043]
[1773100931634,0.00459421,68435.0,68425.0,0.00191]
[1773100932038,0.6,68434.0,68425.0,0.00043]
[1773100932288,0.03,68433.0,68427.0,0.00323622]
[1773100932583,0.03,68433.0,68425.0,0.00043]
[1773100933288,0.03,68433.0,68426.0,0.0002]
[1773100933497,0.03,68431.0,68426.0,0.0002]
[1773100933896,0.03,68429.0,68426.0,0.0002]
[1773100936097,0.10306851,68429.0,68426.0,0.0012]
[1773100936473,0.10306851,68429.0,68426.0,0.0002]
[1773100936673,0.10306851,68429.0,68426.0,0.0012]
[1773100939521,0.004,68428.0,68426.0,0.0002]
[1773100939661,0.004,68428.0,68426.0,0.0012]
[1773100940254,0.004,68428.0,68426.0,0.0002]
[1773100940490,0.00459421,68434.0,68426.0,0.0012]
[1773100940491,0.03,68431.0,68426.0,0.0012]
[1773100940693,0.04688789,68452.0,68428.0,0.00323622]
[1773100940848,0.07764343,68448.0,68431.0,0.04486993]
[1773100941074,0.07764343,68448.0,68433.0,0.00323622]
[1773100941481,0.03,68447.0,68433.0,0.00323622]
[1773100942478,0.03,68445.0,68433.0,0.00323622]
[1773100943677,0.03,68445.0,68434.0,0.005]
[1773100944242,0.03,68441.0,68424.0,0.07327274]
[1773100944446,0.03,68439.0,68426.0,0.00668]
[1773100944589,0.03,68439.0,68426.0,0.00168]
[1773100944791,0.03,68439.0,68427.0,0.005]
[1773100945406,0.03,68439.0,68423.0,0.0732727]
[1773100945407,0.03,68435.0,68418.0,0.00148]
[1773100945610,0.03,68435.0,68419.0,0.005]
[1773100945814,0.07688789,68435.0,68419.0,0.005]
[1773100946258,0.03,68433.0,68419.0,0.005]
[1773100948547,0.03,68431.0,68419.0,0.07307908]
[1773100948710,0.03,68431.0,68427.0,0.0002]
[1773100948912,0.03,68431.0,68424.0,0.00148]
[1773100950343,0.03,68431.0,68423.0,0.005]
[1773100950551,0.03,68429.0,68424.0,0.00148]
[1773100950906,0.03,68429.0,68424.0,0.00748]
[1773100951457,0.03,68429.0,68424.0,0.00248]
[1773100951663,0.03,68429.0,68425.0,0.005]
[1773100952083,0.03,68429.0,68424.0,0.00148]
[1773100952263,0.03,68429.0,68425.0,0.005]
[1773100953093,0.03,68427.0,68425.0,0.006]
[1773100953590,0.03,68427.0,68425.0,0.005]
[1773100953908,0.07306202,68437.0,68425.0,0.12025778]
[1773100954116,0.03,68436.0,68426.0,0.005]
[1773100955236,0.03,68434.0,68427.0,0.005]
[1773100956195,0.00022001,68429.0,68427.0,0.005]
[1773100956789,0.00022001,68429.0,68427.0,0.006]
[1773100957149,0.00022001,68429.0,68428.0,0.00148]
[1773100957351,0.10306543,68432.0,68429.0,0.005]
[1773100957762,0.10306543,68432.0,68430.0,0.00148]
[1773100958391,0.03,68432.0,68430.0,0.00148]
[1773100958596,0.03,68432.0,68430.0,0.00648]
[1773100959211,0.0729921,68433.0,68430.0,0.00248]
[1773100959389,0.07306332,68434.0,68430.0,0.00248]
[1773100959710,0.03,68433.0,68430.0,0.00148]
[1773100959883,0.03,68433.0,68430.0,0.00248]
[1773100961227,0.03,68433.0,68430.0,0.00148]
[1773100961626,0.10306513,68433.0,68430.0,0.00248]
[1773100962001,0.10306513,68433.0,68430.0,0.00148]
[1773100962344,0.10306513,68433.0,68430.0,0.00248]
[1773100962764,0.10306513,68433.0,68430.0,0.00148]
[1773100963103,0.10306513,68433.0,68430.0,0.00248]
[1773100963557,0.03,68433.0,68430.0,0.00248]
[1773100964166,0.07867246,68444.0,68432.0,0.005]
[1773100964371,0.0730577,68440.0,68432.0,0.005]
[1773100964731,0.00022001,68433.0,68432.0,0.005]
[1773100964928,0.0730577,68440.0,68432.0,0.005]
[1773100965166,0.03,68439.0,68432.0,0.005]
[1773100965659,0.03,68437.0,68432.0,0.07306509]
[1773100965904,0.07327682,68440.0,68433.0,0.005]
[1773100966827,0.03,68439.0,68433.0,0.005]
[1773100967820,0.00022001,68447.0,68436.0,0.005]
[1773100968032,15.55910479,68453.0,68438.0,0.005]
[1773100968225,15.55910479,68453.0,68446.0,0.04718525]
[1773100968438,15.55910479,68453.0,68449.0,0.04718525]
[1773100968648,15.55910479,68453.0,68451.0,0.005]
[1773100968818,0.03,68452.0,68451.0,0.005]
[1773100969028,15.55910479,68453.0,68451.0,0.04750024]
[1773100969029,14.49191248,68453.0,68451.0,0.04750024]
[1773100969247,14.49191248,68453.0,68452.0,0.005]
[1773100969248,12.05782641,68453.0,68452.0,0.005]
[1773100969543,11.53303391,68453.0,68452.0,0.005]
[1773100969747,11.1300575,68453.0,68452.0,0.09442296]
[1773100969942,10.96594793,68453.0,68452.0,0.09442296]
[1773100970169,10.47361922,68453.0,68452.0,0.07304388]
[1773100970485,5.74140816,68453.0,68452.0,0.09462106]
[1773100970694,5.73992817,68453.0,68452.0,0.07324198]
[1773100970845,5.7148756,68453.0,68452.0,0.07324198]
[1773100971017,5.64467604,68453.0,68452.0,0.07324198]
[1773100971213,5.47152638,68453.0,68452.0,0.07824198]
[1773100971437,5.18338267,68453.0,68452.0,0.07424198]
[1773100971642,5.06256111,68453.0,68452.0,0.12674222]
[1773100971840,5.04232631,68453.0,68452.0,0.12574222]
[1773100972242,3.03041632,68453.0,68452.0,0.07424198]
[1773100972492,0.96589918,68453.0,68452.0,0.07424198]
[1773100972705,0.00022001,68464.0,68453.0,0.005]
[1773100972906,0.00022001,68465.0,68464.0,0.01549272]
[1773100973114,0.00048,68468.0,68464.0,0.00148]
[1773100973690,0.03022001,68479.0,68472.0,0.0063302]
[1773100973919,0.03022001,68479.0,68475.0,0.0063302]
[1773100974105,0.03,68477.0,68475.0,0.0063302]
[1773100979150,0.00022001,68479.0,68476.0,0.00148]
[1773100979370,2.13,68478.0,68477.0,0.0063302]
[1773100979792,2.13,68478.0,68477.0,0.0078102]
[1773100979992,1.95076,68478.0,68477.0,0.0078102]
[1773100981216,1.95076,68478.0,68477.0,0.0063302]
[1773100981423,1.95076,68478.0,68477.0,0.0078102]
[1773100981602,0.03,68478.0,68477.0,0.0078102]
[1773100981806,0.00022001,68484.0,68477.0,0.0078102]
[1773100982032,0.00022001,68484.0,68477.0,0.07449689]
[1773100982233,0.00022001,68484.0,68478.0,0.0063302]
[1773100983947,0.0001411,68486.0,68479.0,0.07301508]
[1773100984141,0.0001011,68486.0,68480.0,0.0063302]
[1773100984516,0.0001011,68486.0,68481.0,0.00148]
[1773100984723,0.0001011,68486.0,68481.0,0.0078102]
[1773100985811,0.0001011,68486.0,68482.0,0.07301188]
[1773100985959,0.0001011,68486.0,68482.0,0.07449188]
[1773100986603,0.0001011,68486.0,68482.0,0.08082208]
[1773100987517,0.0301011,68486.0,68482.0,0.08182208]
[1773100987767,0.00022001,68491.0,68483.0,0.0063302]
[1773100987997,1.77451562,68490.0,68483.0,0.0063302]
[1773100988209,0.0001696,68496.0,68483.0,0.0063302]
[1773100988372,1e-08,68496.0,68484.0,0.00405159]
[1773100988559,0.07298172,68511.0,68487.0,0.0063302]
[1773100988760,0.07298084,68512.0,68493.0,0.0063302]
[1773100988966,0.13341429,68511.0,68494.0,0.00148]
[1773100989207,0.13341429,68511.0,68495.0,0.02705788]
[1773100989208,0.13827758,68511.0,68495.0,0.02705788]
[1773100989569,0.03,68510.0,68495.0,0.02705788]
[1773100989769,0.16341429,68510.0,68495.0,0.02705788]
[1773100989974,0.03,68508.0,68496.0,0.10005484]
[1773100991458,0.03,68508.0,68496.0,0.10105484]
[1773100991661,0.03,68508.0,68498.0,0.05684209]
[1773100991886,0.07298524,68507.0,68499.0,0.07299376]
[1773100992091,0.03,68506.0,68500.0,0.00148]
[1773100992623,0.03,68506.0,68499.0,0.07299376]
[1773100992957,0.0729756,68517.0,68502.0,0.02705788]
[1773100993131,0.03,68516.0,68507.0,0.05684209]
[1773100993336,0.03,68516.0,68508.0,0.02853788]
[1773100994100,0.03,68518.0,68509.0,0.10004099]
[1773100994505,0.03,68518.0,68510.0,0.02705788]
[1773100994933,0.00057,68519.0,68510.0,0.02705788]
[1773100994934,0.03,68517.0,68510.0,0.02705788]
[1773100995591,0.00022001,68515.0,68510.0,0.02705788]
[1773100996176,0.00022001,68515.0,68512.0,0.02705788]
[1773100998047,0.00022001,68515.0,68513.0,0.07297885]
[1773100998308,0.00022001,68515.0,68513.0,0.10003673]
[1773100998810,0.00022001,68522.0,68513.0,0.10003673]
[1773100999011,0.00022001,68522.0,68514.0,0.02853788]
[1773101000283,0.00022001,68522.0,68515.0,0.07297672]
[1773101001102,0.00022001,68522.0,68504.0,0.17398006]
[1773101001308,0.00022001,68522.0,68496.0,0.10005432]
[1773101001309,0.03,68516.0,68496.0,0.10005432]
[1773101001535,0.05681996,68520.0,68496.0,0.00148]
[1773101001536,0.13311829,68507.0,68496.0,0.00148]
[1773101001739,0.03,68504.0,68496.0,0.00148]
[1773101001943,0.03,68504.0,68491.0,0.10005967]
[1773101001944,0.16311829,68504.0,68491.0,0.10005967]
[1773101002156,0.16311829,68504.0,68491.0,0.10001967]
[1773101002343,0.16639786,68518.0,68477.0,0.03635417]
[1773101002344,0.13311829,68494.0,68481.0,0.02705788]
[1773101002582,0.03,68493.0,68484.0,0.00148]
[1773101003039,0.03,68493.0,68491.0,0.001]
[1773101003248,0.07298606,68507.0,68492.0,0.02705788]
[1773101003249,0.07298834,68506.0,68492.0,0.02705788]
[1773101003459,0.07446834,68506.0,68492.0,0.02705788]
[1773101003635,0.16311829,68505.0,68492.0,0.02705788]
[1773101003867,0.03,68501.0,68492.0,0.00148]
[1773101004070,0.03,68501.0,68489.0,0.0002]
[1773101004272,0.16311829,68501.0,68490.0,0.00148]
[1773101004474,0.16311829,68501.0,68491.0,0.07300229]
[1773101004475,0.23611049,68501.0,68491.0,0.07300229]
[1773101004651,0.16311829,68501.0,68491.0,0.07300229]
[1773101005196,0.03,68499.0,68489.0,0.07320229]
[1773101005396,0.03,68493.0,68487.0,0.07300655]
[1773101005598,0.03,68493.0,68487.0,0.07448655]
[1773101006007,0.03,68493.0,68491.0,0.001]
[1773101006552,0.03,68492.0,68487.0,0.10154443]
[1773101006780,0.03,68492.0,68487.0,0.10254443]
[1773101007131,0.03,68492.0,68487.0,0.07548655]
[1773101007469,0.07447537,68498.0,68488.0,0.02705788]
[1773101007470,0.03,68491.0,68488.0,0.02705788]
[1773101007829,0.03,68491.0,68487.0,0.07548655]
[1773101008029,0.03,68491.0,68488.0,0.07300549]
[1773101008602,0.03,68496.0,68488.0,0.07300549]
[1773101008981,0.10299706,68496.0,68488.0,0.07300549]
[1773101009180,0.03,68496.0,68488.0,0.07300549]
[1773101009580,0.03,68497.0,68488.0,0.07300549]
[1773101009958,0.10299643,68497.0,68488.0,0.07300549]
[1773101010574,0.03148,68498.0,68488.0,0.07300549]
[1773101010734,0.10447513,68498.0,68488.0,0.10006337]
[1773101010937,0.10447513,68498.0,68488.0,0.10026337]
[1773101014672,0.03,68497.0,68488.0,0.10026337]
[1773101015220,0.0744753,68498.0,68488.0,0.07320504]
[1773101015221,0.03,68495.0,68488.0,0.07320504]
[1773101015434,0.05659296,68493.0,68483.0,0.07301005]
[1773101015634,0.03,68491.0,68484.0,0.07300975]
[1773101016674,0.03,68492.0,68484.0,0.07300975]
[1773101017492,0.03,68492.0,68484.0,0.07400975]
[1773101017705,0.03,68493.0,68484.0,0.07400975]
[1773101017858,0.03,68493.0,68485.0,0.02705788]
[1773101018478,0.03,68493.0,68486.0,0.07300762]